fUSD/lending_fUSD_20250616
["ID","MTS","AMOUNT","RATE_DAILY","PERIOD"]
[366193456,1750108235781,-490.0,0.00015986,2]
[366193457,1750108235793,-490.0,0.00015986,2]
[366193458,1750108235804,-102.60716652,0.00015986,2]
[366193459,1750108235909,-387.39283348,0.00015986,2]
[366193460,1750108235921,-339.17329345,0.00015986,2]
[366193461,1750108235936,-150.82670655,0.00015986,2]
[366193462,1750108235947,-461.35088953,0.00015986,2]
[366193463,1750108235961,-28.64911047,0.00015986,2]
[366193464,1750108235971,-490.0,0.00015986,2]
[366193465,1750108235982,-120.51331181,0.00015986,2]
[366193466,1750108235996,-369.48668819,0.00015986,2]
[366193467,1750108236007,-542.91,0.00015986,2]
[366193468,1750108236019,-490.0,0.00015986,2]
[366193469,1750108236031,-490.0,0.00015986,2]
[366193470,1750108236042,-357.41051181,0.00015986,2]
[366193471,1750108236053,-490.0,0.00015986,2]
[366193472,1750108236065,-617.45194309,0.00015986,2]
[366193473,1750108236076,-374.75412432,0.00015986,2]
[366193474,1750108236091,-115.24587568,0.00015986,2]
[366193475,1750108236102,-490.0,0.00015986,2]
[366193476,1750108236114,-400.26780643,0.00015986,2]
[366193477,1750108236133,-89.73219357,0.00015986,2]
[366193478,1750108236144,-329.14843639,0.00015986,2]
[366193479,1750108236155,-161.6602856,0.00015986,2]
[366193484,1750108237891,-490.0,0.00015985,2]
[366193485,1750108237904,-490.0,0.00015985,2]
[366193486,1750108237916,-490.0,0.00015985,2]
[366193487,1750108237927,-328.3397144,0.00015986,2]
[366193488,1750108237939,-490.0,0.00015986,2]
[366193489,1750108237951,-490.0,0.00015986,2]
[366193490,1750108237962,-490.0,0.00015986,2]
[366193491,1750108237975,-490.0,0.00015986,2]
[366193492,1750108237987,-490.0,0.00015986,2]
[366193493,1750108237998,-490.0,0.00015986,2]
[366193494,1750108238010,-490.0,0.00015986,2]
[366193495,1750108238021,-611.01,0.00015986,2]
[366193496,1750108238032,-490.0,0.00015986,2]
[366193497,1750108238042,-490.0,0.00015986,2]
[366193498,1750108238053,-490.0,0.00015986,2]
[366193499,1750108238065,-490.0,0.00015986,2]
[366193500,1750108238076,-490.0,0.00015986,2]
[366193501,1750108238087,-490.33269264,0.00015986,2]
[366193502,1750108238099,-490.0,0.00015986,2]
[366193503,1750108238110,-490.0,0.00015986,2]
[366193504,1750108238120,-490.0,0.00015986,2]
[366193505,1750108238132,-490.0,0.00015986,2]
[366193506,1750108238142,-490.0,0.00015986,2]
[366193507,1750108238153,-490.0,0.00015986,2]
[366193508,1750108238164,-535.44,0.00015986,2]
[366193509,1750108238175,-490.0,0.00015986,2]
[366193510,1750108238186,-490.0,0.00015986,2]
[366193511,1750108238197,-490.0,0.00015986,2]
[366193512,1750108238208,-523.02,0.00015986,2]
[366193513,1750108238219,-490.0,0.00015986,2]
[366193515,1750108238230,-490.0,0.00015986,2]
[366193518,1750108238241,-490.0,0.00015986,2]
[366193520,1750108238253,-490.0,0.00015986,2]
[366193522,1750108238263,-490.0,0.00015986,2]
[366193524,1750108238275,-456.47310733,0.00015986,2]
[366193530,1750108238324,-33.52689267,0.00015986,2]
[366193532,1750108238335,-490.0,0.00015986,2]
[366193534,1750108238346,-554.16,0.00015986,2]
[366193536,1750108238357,-490.0,0.00015986,2]
[366193538,1750108238368,-490.0,0.00015986,2]
[366193541,1750108238378,-490.0,0.00015986,2]
[366193543,1750108238388,-1995.57,0.00015986,2]
[366193545,1750108238399,-490.0,0.00015986,2]
[366193547,1750108238410,-490.0,0.00015986,2]
[366193549,1750108238421,-490.0,0.00015986,2]
[366193552,1750108238433,-2032.08,0.00015986,2]
[366193554,1750108238443,-490.0,0.00015986,2]
[366193556,1750108238455,-490.0,0.00015986,2]
[366193610,1750108239014,-891.88,0.00015986,2]
[366193611,1750108239047,-888.01,0.00015986,2]
[366193612,1750108239067,-490.0,0.00015986,2]
[366193613,1750108239086,-490.0,0.00015986,2]
[366193614,1750108239096,-1447.58,0.00015986,2]
[366193615,1750108239106,-484.09196968,0.00015986,2]
[366193616,1750108239116,-490.0,0.00015986,2]
[366193617,1750108239125,-490.0,0.00015986,2]
[366193618,1750108239135,-490.0,0.00015986,2]
[366193619,1750108239144,-490.0,0.00015986,2]
[366193620,1750108239153,-490.0,0.00015986,2]
[366193621,1750108239163,-5410.91,0.00015986,2]
[366193622,1750108239173,-803.6,0.00015986,2]
[366193623,1750108239183,-490.0,0.00015986,2]
[366193624,1750108239193,-490.0,0.00015986,2]
[366193625,1750108239202,-490.0,0.00015986,2]
[366193626,1750108239212,-574.29,0.00015986,2]
[366193627,1750108239222,-563.95,0.00015986,2]
[366193628,1750108239231,-490.0,0.00015986,2]
[366193629,1750108239241,-255.15740337,0.00015986,2]
[366193630,1750108239251,-490.0,0.00015986,2]
[366193631,1750108239261,-883.39,0.00015986,2]
[366193632,1750108239270,-490.0,0.00015986,2]
[366193633,1750108239280,-490.0,0.00015986,2]
[366193634,1750108239290,-490.0,0.00015986,2]
[366193635,1750108239299,-490.0,0.00015986,2]
[366193636,1750108239308,-490.0,0.00015986,2]
[366193637,1750108239318,-4491.96,0.00015986,2]
[366193638,1750108239327,-490.0,0.00015986,2]
[366193639,1750108239337,-490.0,0.00015986,2]
[366193640,1750108239347,-490.0,0.00015986,2]
[366193641,1750108239356,-940.78,0.00015986,2]
[366193642,1750108239366,-1570.48,0.00015986,2]
[366193643,1750108239376,-490.0,0.00015986,2]
[366193644,1750108239385,-490.0,0.00015986,2]
[366193645,1750108239395,-490.0,0.00015986,2]
[366193646,1750108239405,-1599.56,0.00015986,2]
[366193647,1750108239415,-490.0,0.00015986,2]
[366193648,1750108239425,-343.54329629,0.00015986,2]
[366193649,1750108239434,-1277.95,0.00015986,2]
[366193650,1750108239445,-490.0,0.00015986,2]
[366193651,1750108239455,-222.95577659,0.00015986,2]
[366193652,1750108239465,-599.52,0.00015986,2]
[366193653,1750108239474,-490.0,0.00015986,2]
[366193654,1750108239484,-490.0,0.00015986,2]
[366193655,1750108239494,-3021.1,0.00015986,2]
[366193656,1750108239504,-490.0,0.00015986,2]
[366193657,1750108239514,-2068.93,0.00015986,2]
[366193658,1750108239524,-490.0,0.00015986,2]
[366193659,1750108239534,-490.0,0.00015986,2]
[366193660,1750108239543,-490.0,0.00015986,2]
[366193661,1750108239554,-757.85,0.00015986,2]
[366193662,1750108239564,-490.0,0.00015986,2]
[366193663,1750108239574,-2017.44,0.00015986,2]
[366193664,1750108239584,-490.0,0.00015986,2]
[366193665,1750108239594,-490.0,0.00015986,2]
[366193666,1750108239604,-490.0,0.00015986,2]
[366193667,1750108239618,-490.0,0.00015986,2]
[366193668,1750108239628,-526.7,0.00015986,2]
[366193669,1750108239638,-616.79,0.00015986,2]
[366193670,1750108239648,-1000.0,0.00015986,2]
[366193671,1750108239658,-490.0,0.00015986,2]
[366193672,1750108239669,-490.0,0.00015986,2]
[366193673,1750108239679,-490.0,0.00015986,2]
[366193674,1750108239689,-490.0,0.00015986,2]
[366193675,1750108239699,-490.0,0.00015986,2]
[366193676,1750108239709,-490.0,0.00015986,2]
[366193677,1750108239719,-578.56,0.00015986,2]
[366193678,1750108239730,-490.0,0.00015986,2]
[366193679,1750108239739,-490.0,0.00015986,2]
[366193680,1750108239749,-628.9,0.00015986,2]
[366193681,1750108239759,-490.0,0.00015986,2]
[366193682,1750108239769,-1628.04,0.00015986,2]
[366193683,1750108239779,-490.0,0.00015986,2]
[366193684,1750108239789,-4642.75,0.00015986,2]
[366193685,1750108239799,-490.0,0.00015986,2]
[366193686,1750108239808,-490.0,0.00015986,2]
[366193687,1750108239819,-490.0,0.00015986,2]
[366193688,1750108239829,-490.0,0.00015986,2]
[366193689,1750108239839,-490.0,0.00015986,2]
[366193690,1750108239849,-508.07,0.00015986,2]
[366193691,1750108239858,-490.0,0.00015986,2]
[366193692,1750108239868,-490.0,0.00015986,2]
[366193693,1750108239877,-490.0,0.00015986,2]
[366193694,1750108239887,-490.0,0.00015986,2]
[366193695,1750108239896,-490.0,0.00015986,2]
[366193696,1750108239906,-490.0,0.00015986,2]
[366193697,1750108239915,-490.0,0.00015986,2]
[366193698,1750108239925,-490.0,0.00015986,2]
[366193699,1750108239934,-502.74,0.00015986,2]
[366193700,1750108239944,-490.0,0.00015986,2]
[366193701,1750108239953,-490.0,0.00015986,2]
[366193702,1750108239963,-490.0,0.00015986,2]
[366193703,1750108239972,-661.85,0.00015986,2]
[366193704,1750108239982,-490.0,0.00015986,2]
[366193705,1750108239991,-490.0,0.00015987,2]
[366193706,1750108240001,-490.0,0.00015987,2]
[366193707,1750108240010,-490.0,0.00015987,2]
[366193708,1750108240021,-490.0,0.00015987,2]
[366193709,1750108240030,-5861.7,0.00015987,2]
[366193710,1750108240039,-490.0,0.00015987,2]
[366193711,1750108240048,-930.48,0.00015987,2]
[366193712,1750108240057,-490.0,0.00015987,2]
[366193713,1750108240068,-536.69405408,0.00015987,2]
[366193714,1750108240081,-43.40594592,0.00015987,2]
[366193716,1750108240090,-889.39,0.00015987,2]
[366193717,1750108240099,-490.0,0.00015987,2]
[366193718,1750108240108,-519.06,0.00015987,2]
[366193719,1750108240117,-191.74405408,0.00015987,2]
[366193720,1750108240133,-298.25594592,0.00015987,2]
[366193721,1750108240143,-859.71,0.00015987,2]
[366193722,1750108240153,-490.0,0.00015988,2]
[366193723,1750108240163,-490.0,0.00015988,2]
[366193724,1750108240172,-285.48117987,0.00015988,2]
[366193725,1750108240322,-204.51882013,0.00015988,2]
[366193726,1750108240331,-490.0,0.00015988,2]
[366193727,1750108240340,-490.0,0.00015988,2]
[366193728,1750108240350,-490.0,0.00015988,2]
[366193729,1750108240359,-538.73,0.00015988,2]
[366193730,1750108240368,-400.62,0.00015988,2]
[366193731,1750108240377,-490.0,0.00015988,2]
[366193732,1750108240387,-490.0,0.00015988,2]
[366193733,1750108240397,-490.0,0.00015988,2]
[366193734,1750108240406,-490.0,0.00015988,2]
[366193735,1750108240416,-490.0,0.00015988,2]
[366193736,1750108240425,-490.0,0.00015988,2]
[366193737,1750108240435,-565.3,0.00015988,2]
[366193738,1750108240445,-490.0,0.00015988,2]
[366193739,1750108240455,-490.0,0.00015988,2]
[366193740,1750108240465,-490.0,0.00015988,2]
[366193741,1750108240474,-490.0,0.00015988,2]
[366193742,1750108240483,-490.0,0.00015988,2]
[366193743,1750108240493,-490.0,0.00015988,2]
[366193744,1750108240503,-490.0,0.00015988,2]
[366193745,1750108240513,-490.0,0.00015988,2]
[366193746,1750108240524,-691.34,0.00015988,2]
[366193747,1750108240535,-490.0,0.00015988,2]
[366193748,1750108240545,-490.0,0.00015988,2]
[366193749,1750108240555,-490.0,0.00015988,2]
[366193750,1750108240565,-490.0,0.00015988,2]
[366193751,1750108240575,-490.0,0.00015988,2]
[366193752,1750108240585,-490.0,0.00015988,2]
[366193753,1750108240596,-490.0,0.00015988,2]
[366193754,1750108240605,-490.0,0.00015988,2]
[366193755,1750108240618,-490.0,0.00015988,2]
[366193756,1750108240628,-490.0,0.00015988,2]
[366193757,1750108240639,-490.0,0.00015988,2]
[366193758,1750108240648,-490.0,0.00015988,2]
[366193759,1750108240662,-490.0,0.00015988,2]
[366193760,1750108240673,-490.0,0.00015988,2]
[366193761,1750108240682,-490.0,0.00015988,2]
[366193762,1750108240692,-490.0,0.00015988,2]
[366193763,1750108240702,-490.0,0.00015988,2]
[366193764,1750108240711,-490.0,0.00015988,2]
[366193765,1750108240721,-150.0,0.00015996,2]
[366193766,1750108240731,-5944.6529811,0.00015998,2]
[366193767,1750108240740,-151000.0,0.00016,2]
[366193768,1750108240750,-500.0,0.00016,2]
[366193769,1750108240759,-240.0,0.00016,2]
[366193770,1750108240768,-1687.35702802,0.00016,2]
[366193771,1750108240778,-150.0,0.00016007,2]
[366193772,1750108240787,-183.30348925,0.00016011,2]
[366193773,1750108240797,-1000.0,0.00016016,2]
[366193774,1750108240806,-150.0,0.00016019,2]
[366193775,1750108240816,-1000.0,0.00016019,2]
[366193776,1750108240826,-797.51,0.00016027,2]
[366193777,1750108240836,-461.62,0.00016027,2]
[366193778,1750108240846,-797.51,0.00016027,2]
[366193779,1750108240855,-461.62,0.00016027,2]
[366193780,1750108240865,-153.06,0.00016027,2]
[366193781,1750108240874,-461.62,0.00016027,2]
[366193782,1750108240884,-461.62,0.00016027,2]
[366193783,1750108240893,-461.62,0.00016027,2]
[366193784,1750108240903,-460.13,0.00016027,2]
[366193785,1750108240912,-150.0,0.00016033,2]
[366193786,1750108240922,-2264.10087164,0.00016034,2]
[366193787,1750108240931,-1000.0,0.0001604,2]
[366193788,1750108240941,-153.60678239,0.00016043,2]
[366193789,1750108240958,-916.94,0.00016055,2]
[366193790,1750108240968,-150.0,0.00016057,2]
[366193791,1750108240978,-272.0,0.00016062,2]
[366193792,1750108240987,-319.06007796,0.00016063,2]
[366193793,1750108240997,-330.55412333,0.00016065,2]
[366193794,1750108241006,-150.0,0.0001607,2]
[366193795,1750108241017,-150.0,0.00016075,2]
[366193796,1750108241029,-150.0,0.00016076,2]
[366193797,1750108241040,-181.75,0.00016082,2]
[366193798,1750108241049,-150.0,0.00016084,2]
[366193799,1750108241060,-150.0,0.00016086,2]
[366193800,1750108241070,-150.0,0.00016087,2]
[366193801,1750108241080,-2347.87260389,0.00016089,2]
[366193802,1750108241090,-750.87967269,0.000161,2]
[366193803,1750108241099,-750.8796724,0.000161,2]
[366193804,1750108241110,-750.8796724,0.000161,2]
[366193805,1750108241120,-750.8796724,0.000161,2]
[366193806,1750108241131,-750.8796724,0.000161,2]
[366193807,1750108241141,-750.8796724,0.000161,2]
[366193808,1750108241151,-150.0,0.00016105,2]
[366193809,1750108241160,-150.0,0.00016106,2]
[366193810,1750108241170,-750.8796724,0.00016107,2]
[366193811,1750108241180,-150.0,0.0001611,2]
[366193812,1750108241190,-5944.6529811,0.00016111,2]
[366193813,1750108241200,-1687.35702802,0.00016113,2]
[366193814,1750108241209,-833.8156298,0.00016115,2]
[366193815,1750108241219,-161.41727078,0.00016139,2]
[366193816,1750108241229,-209.66174142,0.00016139,2]
[366193817,1750108241239,-156.45,0.0001614,2]
[366193818,1750108241249,-150.0,0.00016141,2]
[366193819,1750108241258,-150.0,0.00016141,2]
[366193820,1750108241267,-750.8796724,0.00016141,2]
[366193821,1750108241277,-152.63354981,0.00016143,2]
[366193822,1750108241287,-2434.74389024,0.00016144,2]
[366193823,1750108241297,-1532.726959,0.0001615,2]
[366193824,1750108241306,-1141.270081,0.0001615,2]
[366193825,1750108241317,-1361.5,0.0001615,2]
[366193826,1750108241327,-1624.49,0.0001615,2]
[366193827,1750108241336,-654.92,0.0001615,2]
[366193828,1750108241346,-504.41,0.0001615,2]
[366193829,1750108241355,-490.0,0.0001615,2]
[366193830,1750108241365,-846.47,0.0001615,2]
[366193831,1750108241374,-811.5,0.0001615,2]
[366193832,1750108241384,-581.17,0.0001615,2]
[366193833,1750108241394,-490.0,0.0001615,2]
[366193834,1750108241404,-695.53,0.0001615,2]
[366193835,1750108241415,-490.0,0.0001615,2]
[366193836,1750108241426,-637.18688093,0.0001615,2]
[366193837,1750108241436,-490.0,0.0001615,2]
[366193838,1750108241446,-2279.51,0.0001615,2]
[366193839,1750108241455,-755.34,0.0001615,2]
[366193840,1750108241465,-490.0,0.0001615,2]
[366193841,1750108241476,-707.46,0.0001615,2]
[366193842,1750108241486,-490.0,0.0001615,2]
[366193843,1750108241496,-490.0,0.0001615,2]
[366193844,1750108241506,-490.0,0.0001615,2]
[366193845,1750108241516,-1343.52,0.0001615,2]
[366193846,1750108241527,-738.85,0.0001615,2]
[366193847,1750108241536,-490.0,0.0001615,2]
[366193848,1750108241546,-490.0,0.0001615,2]
[366193849,1750108241556,-490.0,0.0001615,2]
[366193850,1750108241567,-576.84364669,0.0001615,2]
[366193851,1750108241576,-490.0,0.0001615,2]
[366193852,1750108241586,-1109.61,0.0001615,2]
[366193853,1750108241596,-1660.55,0.0001615,2]
[366193854,1750108241606,-490.0,0.0001615,2]
[366193855,1750108241623,-490.0,0.0001615,2]
[366193856,1750108241634,-490.0,0.0001615,2]
[366193857,1750108241644,-490.0,0.0001615,2]
[366193858,1750108241655,-1051.01,0.0001615,2]
[366193859,1750108241665,-490.0,0.0001615,2]
[366193860,1750108241675,-854.01,0.0001615,2]
[366193861,1750108241685,-267.06159021,0.0001615,2]
[366193862,1750108241698,-490.0,0.0001615,2]
[366193863,1750108241708,-490.0,0.0001615,2]
[366193864,1750108241719,-807.41,0.0001615,2]
[366193865,1750108241728,-597.86,0.0001615,2]
[366193866,1750108241738,-490.0,0.0001615,2]
[366193867,1750108241748,-490.0,0.0001615,2]
[366193868,1750108241758,-490.0,0.0001615,2]
[366193869,1750108241768,-598.73,0.0001615,2]
[366193870,1750108241778,-490.0,0.0001615,2]
[366193871,1750108241788,-490.0,0.0001615,2]
[366193872,1750108241800,-1204.33,0.0001615,2]
[366193873,1750108241810,-734.02,0.0001615,2]
[366193874,1750108241820,-490.0,0.0001615,2]
[366193875,1750108241831,-1102.64,0.0001615,2]
[366193876,1750108241842,-600.59,0.0001615,2]
[366193877,1750108241851,-1951.53,0.0001615,2]
[366193878,1750108241861,-520.59,0.0001615,2]
[366193879,1750108241871,-490.0,0.0001615,2]
[366193880,1750108241881,-490.0,0.0001615,2]
[366193881,1750108241891,-904.69,0.0001615,2]
[366193882,1750108241900,-490.0,0.0001615,2]
[366193883,1750108241910,-1065.63,0.0001615,2]
[366193884,1750108241920,-490.0,0.0001615,2]
[366193885,1750108241930,-490.0,0.0001615,2]
[366193886,1750108241940,-490.0,0.0001615,2]
[366193887,1750108241950,-490.0,0.0001615,2]
[366193888,1750108241961,-490.0,0.0001615,2]
[366193889,1750108241971,-490.0,0.0001615,2]
[366193890,1750108241981,-490.0,0.0001615,2]
[366193891,1750108241991,-490.0,0.0001615,2]
[366193892,1750108242001,-490.0,0.0001615,2]
[366193893,1750108242011,-490.0,0.0001615,2]
[366193894,1750108242021,-490.0,0.0001615,2]
[366193895,1750108242031,-490.0,0.0001615,2]
[366193896,1750108242040,-490.0,0.0001615,2]
[366193897,1750108242051,-490.0,0.00016151,2]
[366193899,1750108242060,-490.0,0.00016151,2]
[366193900,1750108242070,-490.0,0.00016151,2]
[366193901,1750108242080,-490.0,0.00016151,2]
[366193902,1750108242089,-490.0,0.00016151,2]
[366193904,1750108242099,-490.0,0.00016151,2]
[366193906,1750108242108,-490.0,0.00016151,2]
[366193908,1750108242118,-490.0,0.00016151,2]
[366193910,1750108242127,-490.0,0.00016151,2]
[366193912,1750108242137,-490.0,0.00016151,2]
[366193914,1750108242147,-490.0,0.00016151,2]
[366193916,1750108242157,-490.0,0.00016151,2]
[366193918,1750108242166,-301.36716633,0.00016151,2]
[366193920,1750108242175,-490.0,0.00016151,2]
[366193921,1750108242185,-520.64,0.00016151,2]
[366193922,1750108242195,-490.0,0.00016151,2]
[366193923,1750108242205,-490.0,0.00016151,2]
[366193924,1750108242214,-490.0,0.00016151,2]
[366193925,1750108242224,-490.0,0.00016151,2]
[366193926,1750108242234,-490.0,0.00016151,2]
[366193927,1750108242244,-490.0,0.00016151,2]
[366193928,1750108242253,-490.0,0.00016151,2]
[366193929,1750108242263,-490.0,0.00016151,2]
[366193930,1750108242273,-490.0,0.00016151,2]
[366193931,1750108242283,-490.0,0.00016151,2]
[366193932,1750108242292,-490.0,0.00016151,2]
[366193933,1750108242302,-490.0,0.00016151,2]
[366193934,1750108242312,-490.0,0.00016151,2]
[366193935,1750108242324,-542.91,0.00016151,2]
[366193936,1750108242333,-490.0,0.00016151,2]
[366193937,1750108242343,-490.0,0.00016151,2]
[366193938,1750108242352,-490.0,0.00016151,2]
[366193939,1750108242362,-490.0,0.00016151,2]
[366193940,1750108242371,-490.0,0.00016151,2]
[366193941,1750108242381,-490.0,0.00016151,2]
[366193942,1750108242391,-611.01,0.00016151,2]
[366193943,1750108242400,-490.0,0.00016151,2]
[366193944,1750108242410,-490.0,0.00016151,2]
[366193945,1750108242419,-490.0,0.00016151,2]
[366193946,1750108242429,-490.0,0.00016151,2]
[366193947,1750108242439,-490.0,0.00016151,2]
[366193948,1750108242448,-490.0,0.00016151,2]
[366193949,1750108242459,-490.0,0.00016151,2]
[366193950,1750108242468,-535.44,0.00016151,2]
[366193951,1750108242478,-490.0,0.00016151,2]
[366193952,1750108242488,-490.0,0.00016151,2]
[366193953,1750108242498,-490.0,0.00016151,2]
[366193954,1750108242509,-523.02,0.00016151,2]
[366193955,1750108242519,-490.0,0.00016151,2]
[366193956,1750108242529,-490.0,0.00016151,2]
[366193957,1750108242538,-490.0,0.00016151,2]
[366193958,1750108242548,-490.0,0.00016151,2]
[366193959,1750108242557,-554.16,0.00016151,2]
[366193960,1750108242568,-490.0,0.00016151,2]
[366193961,1750108242578,-490.0,0.00016151,2]
[366193962,1750108242588,-490.0,0.00016151,2]
[366193963,1750108242599,-1995.57,0.00016151,2]
[366193964,1750108242608,-490.0,0.00016151,2]
[366193965,1750108242622,-490.0,0.00016151,2]
[366193966,1750108242633,-490.0,0.00016151,2]
[366193967,1750108242643,-2032.08,0.00016151,2]
[366193968,1750108242652,-891.88,0.00016151,2]
[366193969,1750108242662,-888.01,0.00016151,2]
[366193970,1750108242672,-490.0,0.00016151,2]
[366193971,1750108242681,-1447.58,0.00016151,2]
[366193972,1750108242693,-490.0,0.00016151,2]
[366193973,1750108242702,-411.66507046,0.00016151,2]
[366193974,1750108242712,-490.0,0.00016151,2]
[366193975,1750108242722,-5410.91,0.00016151,2]
[366193976,1750108242734,-803.6,0.00016151,2]
[366193977,1750108242743,-490.0,0.00016151,2]
[366193979,1750108242752,-490.0,0.00016151,2]
[366193980,1750108242762,-490.0,0.00016151,2]
[366193981,1750108242771,-574.29,0.00016151,2]
[366193982,1750108242781,-563.95,0.00016151,2]
[366193983,1750108242791,-490.0,0.00016151,2]
[366193984,1750108242801,-490.0,0.00016151,2]
[366193985,1750108242810,-883.39,0.00016151,2]
[366193986,1750108242821,-490.0,0.00016151,2]
[366193987,1750108242830,-490.0,0.00016151,2]
[366193988,1750108242840,-490.0,0.00016151,2]
[366193989,1750108242850,-490.0,0.00016151,2]
[366193990,1750108242859,-490.0,0.00016151,2]
[366193991,1750108242868,-4491.96,0.00016151,2]
[366193992,1750108242878,-632.64745949,0.00016151,2]
[366193993,1750108242887,-490.0,0.00016151,2]
[366193994,1750108242896,-490.0,0.00016151,2]
[366193995,1750108242906,-940.78,0.00016151,2]
[366193996,1750108242916,-1570.48,0.00016151,2]
[366193997,1750108242925,-490.0,0.00016151,2]
[366193998,1750108242935,-490.0,0.00016151,2]
[366193999,1750108242944,-1599.56,0.00016151,2]
[366194000,1750108242953,-198.04349841,0.00016151,2]
[366194001,1750108242963,-1277.95,0.00016151,2]
[366194002,1750108242972,-3021.1,0.00016151,2]
[366194003,1750108242982,-490.0,0.00016151,2]
[366194004,1750108242991,-2068.93,0.00016151,2]
[366194005,1750108243001,-490.0,0.00016151,2]
[366194006,1750108243010,-490.0,0.00016151,2]
[366194007,1750108243020,-757.85,0.00016151,2]
[366194008,1750108243030,-490.0,0.00016151,2]
[366194009,1750108243273,-2017.44,0.00016151,2]
[366194010,1750108243283,-490.0,0.00016151,2]
[366194011,1750108243293,-490.0,0.00016151,2]
[366194012,1750108243303,-526.7,0.00016151,2]
[366194013,1750108243312,-616.79,0.00016151,2]
[366194014,1750108243322,-1000.0,0.00016151,2]
[366194015,1750108243332,-490.0,0.00016151,2]
[366194016,1750108243341,-490.0,0.00016151,2]
[366194018,1750108243350,-490.0,0.00016151,2]
[366194020,1750108243360,-490.0,0.00016151,2]
[366194022,1750108243369,-490.0,0.00016151,2]
[366194024,1750108243378,-490.0,0.00016151,2]
[366194026,1750108243388,-578.56,0.00016151,2]
[366194028,1750108243397,-490.0,0.00016151,2]
[366194030,1750108243407,-490.0,0.00016151,2]
[366194032,1750108243416,-628.9,0.00016151,2]
[366194034,1750108243425,-1628.04,0.00016151,2]
[366194036,1750108243435,-490.0,0.00016151,2]
[366194038,1750108243444,-490.0,0.00016151,2]
[366194040,1750108243454,-4642.75,0.00016151,2]
[366194042,1750108243463,-490.0,0.00016151,2]
[366194044,1750108243473,-490.0,0.00016151,2]
[366194046,1750108243483,-508.07,0.00016151,2]
[366194048,1750108243492,-490.0,0.00016151,2]
[366194050,1750108243502,-490.0,0.00016151,2]
[366194052,1750108243513,-490.0,0.00016151,2]
[366194054,1750108243522,-490.0,0.00016151,2]
[366194056,1750108243532,-490.0,0.00016151,2]
[366194058,1750108243542,-502.74,0.00016151,2]
[366194060,1750108243551,-490.0,0.00016151,2]
[366194062,1750108243562,-490.0,0.00016151,2]
[366194064,1750108243572,-661.85,0.00016151,2]
[366194066,1750108243582,-311.30435507,0.00016152,2]
[366194068,1750108243591,-490.0,0.00016152,2]
[366194070,1750108243601,-608.6728,0.00016152,2]
[366194072,1750108243613,-490.0,0.00016152,2]
[366194073,1750108243624,-490.0,0.00016152,2]
[366194075,1750108243634,-211.06,0.00016152,2]
[366194077,1750108243643,-490.0,0.00016152,2]
[366194079,1750108243653,-347.86851602,0.00016152,2]
[366194081,1750108243664,-79.74505863,0.00016152,2]